[Event "ETCC Open 2023"]
[Site "Budva"]
[Date "2023.11.12"]
[Round "2.75"]
[White "Grant, Jonathan I M"]
[Black "Beukema, Jasper"]
[Result "0-1"]
[ECO "A21"]
[WhiteElo "2150"]
[BlackElo "2357"]
[Annotator "ChessBase"]
[PlyCount "54"]
[EventDate "2023.11.10"]
[EventType "team-tourn"]
[EventCountry "MNE"]
[SourceTitle "playchess.com"]
[Source "ChessBase"]
[SourceQuality "1"]
[WhiteTeam "Scotland"]
[BlackTeam "Belgium"]
[WhiteTeamCountry "SCO"]
[BlackTeamCountry "BEL"]
[TimeControl "40/5400+30:1800+30"]

1. c4 {[%emt 0:00:06]} e5 {[%emt 0:00:03]} 2. Nc3 {[%emt 0:00:05]} Bb4 {[%emt 0:00:03]} 3. Na4 {[%emt 0:00:34]} Be7 {[%emt 0:01:00]} 4. Nf3 {[%emt 0:01:53]} Nc6 {[%emt 0:01:56]} 5. e3 {[%emt 0:02:14]} Nf6 {[%emt 0:03:36]} 6. d4 {[%emt 0:01:39]} exd4 {[%emt 0:00:05]} 7. exd4 {[%emt 0:00:46]} d5 {[%emt 0:00:08]} 8. c5 {[%emt 0:01:19]} O-O {[%emt 0:03:49]} 9. Be2 {[%emt 0:06:04]} Ne4 {[%emt 0:03:48]} 10. O-O {[%emt 0:00:59]} Be6 {[%emt 0:04:01]} 11. a3 {[%emt 0:02:47]} a5 {[%emt 0:01:09]} 12. Be3 {[%emt 0:15:05]} f5 {[%emt 0:03:14]} 13. g3 {[%emt 0:04:18]} Qd7 {[%emt 0:04:32]} 14. Bb5 {[%emt 0:03:40]} Bf6 {[%emt 0:02:34]} 15. Bf4 {[%emt 0:05:01]} Qe7 {[%emt 0:01:07]} 16. Bxc6 {[%emt 0:02:48]} bxc6 {[%emt 0:00:05]} 17. Be5 {[%emt 0:01:46]} f4 {[%emt 0:01:06]} 18. Bxf4 {[%emt 0:30:17]} g5 {[%emt 0:00:28]} 19. Bc1 {[%emt 0:06:04]} Bg4 {[%emt 0:00:46]} 20. h3 {[%emt 0:02:16]} Bxh3 {[%emt 0:05:19]} 21. Re1 {[%emt 0:00:45]} Bg4 {[%emt 0:00:04]} 22. Re3 {[%emt 0:01:05]} Qf7 {[%emt 0:01:58]} 23. Qf1 {[%emt 0:07:51]} Qh5 {[%emt 0:01:46]} 24. Nh2 {[%emt 0:01:31]} Bxd4 {[%emt 0:00:37]} 25. Rxe4 {[%emt 0:00:30]} Rxf2 {[%emt 0:00:47]} 26. Nxg4 {[%emt 0:00:44]} Rxf1+ {[%emt 0:00:27]} 27. Kxf1 {[%emt 0:00:32]} Qh1+ {[%emt 0:00:19]} 0-1

[Event "ETCC Open 2023"]
[Site "Budva"]
[Date "2023.11.12"]
[Round "2.76"]
[White "Roos, Adrian"]
[Black "Levy, David N L"]
[Result "1-0"]
[ECO "A43"]
[WhiteElo "2240"]
[BlackElo "2221"]
[Annotator "ChessBase"]
[PlyCount "35"]
[EventDate "2023.11.10"]
[EventType "team-tourn"]
[EventCountry "MNE"]
[SourceTitle "playchess.com"]
[Source "ChessBase"]
[SourceQuality "1"]
[WhiteTeam "Belgium"]
[BlackTeam "Scotland"]
[WhiteTeamCountry "BEL"]
[BlackTeamCountry "SCO"]
[TimeControl "40/5400+30:1800+30"]

1. d4 {[%emt 0:00:04]} Nf6 {[%emt 0:00:13]} 2. Nf3 {[%emt 0:00:05]} c5 {[%emt 0:00:06]} 3. d5 {[%emt 0:00:05]} b5 {[%emt 0:00:30]} 4. Bg5 {[%emt 0:00:06]} Qb6 {[%emt 0:01:36]} 5. a4 {[%emt 0:05:00]} Bb7 {[%emt 0:03:50]} 6. Nbd2 {[%emt 0:15:34]} Bxd5 {[%emt 0:04:17]} 7. axb5 {[%emt 0:01:37]} Ne4 {[%emt 0:06:28]} 8. Nxe4 {[%emt 0:09:17]} Bxe4 {[%emt 0:00:02]} 9. Nd2 {[%emt 0:00:32]} Bb7 {[%emt 0:06:51]} 10. e4 {[%emt 0:10:02]} Qg6 {[%emt 0:03:30]} 11. h4 {[%emt 0:01:05]} Bxe4 {[%emt 0:09:02]} 12. Nxe4 {[%emt 0:00:09]} Qxe4+ {[%emt 0:00:02]} 13. Be2 {[%emt 0:02:25]} d5 {[%emt 0:27:07]} 14. O-O {[%emt 0:09:46]} h6 {[%emt 0:01:38]} 15. Bf3 {[%emt 0:04:16]} Qb4 {[%emt 0:08:46]} 16. Qxd5 {[%emt 0:10:35]} hxg5 {[%emt 0:00:10]} 17. Qxa8 {[%emt 0:01:22]} Qxh4 {[%emt 0:00:09]} 18. Bc6+ {[%emt 0:00:13]} 1-0

[Event "ETCC Open 2023"]
[Site "Budva"]
[Date "2023.11.13"]
[Round "3.1"]
[White "Predke, Alexandr"]
[Black "Keymer, Vincent"]
[Result "1-0"]
[ECO "C84"]
[WhiteElo "2661"]
[BlackElo "2721"]
[Annotator "TA"]
[PlyCount "195"]
[EventDate "2023.11.10"]
[EventType "team-tourn"]
[EventCountry "MNE"]
[SourceTitle "playchess.com"]
[Source "ChessBase"]
[SourceQuality "1"]
[WhiteTeam "Serbia"]
[BlackTeam "Germany"]
[WhiteTeamCountry "SRB"]
[BlackTeamCountry "GER"]
[TimeControl "40/5400+30:1800+30"]

{[%evp 20,195,22,20,33,25,33,30,33,34,31,25,31,41,32,28,28,20,25,0,36,34,34,32,33,13,14,8,29,40,29,31,24,23,37,54,63,0,0,0,0,0,14,17,5,15,15,0,39,10,80,58,43,53,58,45,61,42,50,55,66,64,52,41,87,87,78,80,84,84,114,86,89,81,83,80,88,80,93,69,70,62,64,62,62,58,62,49,62,49,70,69,69,69,69,62,70,69,70,76,77,70,74,65,66,66,66,66,101,101,101,101,112,112,112,65,100,100,100,79,79,46,96,96,96,79,79,0,96,79,79,79,95,79,95,95,95,95,96,95,95,79,79,79,95,95,95,95,89,79,95,95,95,95,95,71,71,71,71,71,71,71,124,64,60,62,321,268,584,581,29967,29968,29967,29967,29972,29973,29973,29973]} 1. e4 {[%emt 0:01:28]} e5 {[%emt 0:00:14]} 2. Nf3 {[%emt 0:00:05]} Nc6 {[%emt 0:00:03]} 3. Bb5 {[%emt 0:00:06]} a6 {[%emt 0:00:06]} 4. Ba4 {[%emt 0:00:04]} Nf6 {[%emt 0:00:07]} 5. O-O {[%emt 0:00:14]} Be7 {[%emt 0:00:41]} 6. d3 {[%emt 0:00:13]} b5 {[%emt 0:00:26]} 7. Bb3 {[%emt 0:00:06]} d6 {[%emt 0:00:03]} 8. a4 {[%emt 0:00:11]} Bd7 {[%emt 0:01:18]} 9. c3 {[%emt 0:02:10]} O-O {[%emt 0:00:34]} 10. Ba2 {[%emt 0:00:16]} b4 {[%emt 0:11:18]} 11. h3 {[%emt 0:01:21]} Be6 {[%emt 0:10:29]} 12. Bxe6 {[%emt 0:04:06]} fxe6 {[%emt 0:00:11]} 13. Be3 {[%emt 0:00:53]} d5 {[%emt 0:02:35]} 14. Nbd2 {[%emt 0:00:36]} h6 {[%emt 0:02:00]} 15. Qc2 {[%emt 0:16:38]} Rb8 {[%emt 0:09:37]} 16. d4 {[%emt 0:19:30]} bxc3 {[%emt 0:08:19]} 17. bxc3 {[%emt 0:06:10]} exd4 {[%emt 0:01:47]} 18. Bxd4 {[%emt 0:01:43]} Nh5 {[%emt 0:06:46]} 19. Rae1 {[%emt 0:05:26]} Nf4 {[%emt 0:04:17]} 20. Be3 {[%emt 0:03:27]} Qd7 {[%emt 0:04:44]} 21. Bxf4 {[%emt 0:04:36]} Rxf4 {[%emt 0:00:08]} 22. Qd3 {[%emt 0:00:11]} a5 {[%emt 0:02:35]} 23. Rb1 {[%emt 0:06:25]} Rd8 {[%emt 0:02:33]} 24. Qe3 {[%emt 0:00:52]} Rff8 {[%emt 0:01:31]} 25. exd5 {[%emt 0:03:22]} exd5 {[%emt 0:00:21]} 26. Rb5 {[%emt 0:00:22]} Bd6 {[%emt 0:08:42]} 27. Nb3 {[%emt 0:01:37]} Kh8 {[%emt 0:03:20]} 28. Rd1 {[%emt 0:08:11]} ({White should play} 28. Qd3 $14) 28... Qf7 {[%emt 0:01:21]} (28... Rde8 $5 {[%cal Re8e3]} 29. Qd3 Ne5 30. Nxe5 (30. Qxd5 $2 Rxf3 31. Nc5 Qf5 $19) 30... Rxe5 $11) 29. Nxa5 {[%emt 0:02:49]} Rde8 {[%emt 0:00:13]} 30. Qd2 $1 {[%emt 0:00:46]} Ne5 {[%emt 0:02:31]} 31. Nxe5 {[%emt 0:02:26]} (31. Qxd5 $2 {perishes.} Qf4 $19) 31... Rxe5 {[%emt 0:00:05]} 32. Nb7 $1 {[%emt 0:04:54]} (32. Rxd5 Rxd5 33. f3 Rxd2 34. Rxd2 Bg3 35. Rd1 Re8 36. Rf1 Qa2) 32... Be7 {[%emt 0:01:59]} 33. Nc5 {[%emt 0:01:10]} ({Much worse is} 33. Rxd5 Bg5 34. Rxe5 Bxd2 35. Rxd2 Rb8 36. Rd8+ Rxd8 37. Nxd8 Qb3 $17) 33... Bg5 {[%emt 0:08:52]} 34. Qb2 {[%emt 0:01:28]} Qh5 {[%emt 0:02:29]} (34... Qe8 $1 $11 {remains equal.} 35. Nd3 Re2) 35. Rf1 {[%emt 0:01:22]} Re2 {[%emt 0:00:56]} 36. Qb1 {[%emt 0:00:19]} Qe8 {[%emt 0:01:15]} 37. Nd3 $1 {[%emt 0:00:30]} c6 {[%emt 0:00:34]} 38. Rb2 {[%emt 0:00:42]} (38. Rb6 $5 {[%cal Ra4a5]}) 38... Rxb2 $1 {[%emt 0:01:49]} 39. Qxb2 {[%emt 0:00:11]} Qe4 {[%emt 0:00:30]} 40. Qb4 {[%emt 0:02:00]} Ra8 {[%emt 0:02:21]} 41. Qb7 {[%emt 0:07:08]} Qxa4 {[%emt 0:08:26] [#]} (41... Rf8 $14 42. Nc5 Qe8) 42. Nc5 $1 $16 {[%emt 0:00:04]} Qa2 {[%emt 0:05:17]} 43. Qxc6 {[%emt 0:00:26]} Rg8 {[%emt 0:03:38]} 44. Nd7 {[%emt 0:11:17]} Qd2 {[%emt 0:03:17]} 45. Qe6 {[%emt 0:03:18]} Qxc3 {[%emt 0:01:46]} 46. Qxd5 {[%emt 0:02:09]} Re8 {[%emt 0:01:21]} 47. g3 {[%emt 0:02:05]} Qd2 {[%emt 0:01:13]} 48. Qc6 {[%emt 0:01:49]} Qe2 {[%emt 0:01:59]} 49. Nc5 {[%emt 0:00:08]} (49. Kg2 {is more complex.} Be3 50. h4 Bd4 51. Qd5) 49... Bf6 {[%emt 0:00:32]} 50. Nd3 {[%emt 0:01:04]} (50. h4 {looks sharper.} Re7 51. Nd7 Bd4 52. Kg2) 50... Qe4 {[%emt 0:00:35]} 51. Qxe4 {[%emt 0:02:43]} Rxe4 {[%emt 0:08:16]} 52. Rb1 {[%emt 0:00:38]} Rd4 {[%emt 0:00:00]} 53. Rb3 {[%emt 0:00:14]} Kh7 {[%emt 0:00:00]} 54. Kg2 {[%emt 0:00:14]} Rd7 {[%emt 0:00:00]} 55. h4 {[%emt 0:00:22]} g6 {[%emt 0:00:00]} 56. Kf3 {[%emt 0:00:42]} Kg7 {[%emt 0:00:00]} 57. Nc5 {[%emt 0:00:36]} Re7 {[%emt 0:00:00]} 58. Rb6 {[%emt 0:00:31]} Kf7 {[%emt 0:00:00]} 59. Ne4 {[%emt 0:00:06]} Bd4 {[%emt 0:00:00]} 60. Rb5 {[%emt 0:01:09]} Kg7 {[%emt 0:00:00]} 61. h5 {[%emt 0:00:47]} gxh5 {[%emt 0:00:02]} 62. Rxh5 {[%emt 0:00:14]} Re5 {[%emt 0:01:15]} 63. Rh1 {[%emt 0:02:22]} Rf5+ {[%emt 0:00:41]} 64. Kg4 {[%emt 0:00:55]} Re5 {[%emt 0:00:22]} 65. f3 {[%emt 0:01:01]} Kg6 {[%emt 0:01:45]} 66. Rd1 {[%emt 0:00:04]} Bc5 {[%emt 0:00:15]} 67. Rc1 {[%emt 0:00:27]} (67. Nxc5 $16 Rg5+ 68. Kf4 Rxc5 69. Rd6+ Kg7 70. g4) 67... Be7 {[%emt 0:00:31]} 68. Rc6+ {[%emt 0:00:09]} Kg7 {[%emt 0:00:04]} 69. Kf4 {[%emt 0:00:49]} Ra5 {[%emt 0:00:05]} 70. Rc7 {[%emt 0:00:19]} Kf8 {[%emt 0:00:49]} (70... Kf7 $1 $14) 71. g4 $16 {[%emt 0:01:38]} Ra3 {[%emt 0:02:07]} 72. Rc6 {[%emt 0:00:40]} Kg7 {[%emt 0:00:22]} 73. Rc7 {[%emt 0:00:46]} Kf8 {[%emt 0:00:05]} 74. Rb7 {[%emt 0:00:44]} Ra5 {[%emt 0:01:45]} 75. Rd7 {[%emt 0:00:17]} Ra3 {[%emt 0:00:31]} 76. Rd5 {[%emt 0:00:20]} Kf7 {[%emt 0:00:23]} 77. Kg3 {[%emt 0:00:39]} Rb3 {[%emt 0:00:24]} 78. Ra5 {[%emt 0:00:35]} Rd3 {[%emt 0:00:11]} 79. Kg2 {[%emt 0:00:43]} Ra3 {[%emt 0:00:26]} 80. Rh5 {[%emt 0:00:35]} Kg6 {[%emt 0:00:45]} 81. Re5 {[%emt 0:00:21]} Kf7 {[%emt 0:00:44]} 82. Rd5 {[%emt 0:00:34]} Ra2+ {[%emt 0:00:16]} 83. Kg3 {[%emt 0:00:06]} Ra3 {[%emt 0:00:04]} 84. Rb5 {[%emt 0:00:26]} Kg7 {[%emt 0:00:25]} 85. Rb7 {[%emt 0:01:02]} Kf8 {[%emt 0:00:04]} 86. Rb6 {[%emt 0:00:32]} Kg7 {[%emt 0:00:06]} 87. Nd2 {[%emt 0:00:36]} Ra5 {[%emt 0:00:29]} 88. Nc4 {[%emt 0:00:12]} Rc5 {[%emt 0:01:26]} 89. Ne3 {[%emt 0:00:22]} Bd8 {[%emt 0:00:43]} 90. Rb7+ {[%emt 0:00:19]} Kg6 {[%emt 0:00:43]} (90... Bc7+ $142 91. Kf2 Kg6) 91. f4 {[%emt 0:00:49]} ({White should try} 91. Rd7 $16 Bg5 92. f4) 91... h5 $14 {[%emt 0:00:41]} 92. Rd7 {[%emt 0:00:33]} (92. g5 $5) 92... Bf6 $2 {[%emt 0:01:27][%mdl 8192]} (92... Rc3 $1 $14) 93. Nd5 $18 {[%emt 0:00:24]} Rc6 $2 {[%emt 0:00:27]} (93... Bb2 {is a better chance.} 94. Rd6+ {[%mdl 64] Deflection} Kg7) 94. Nxf6 $18 {[%emt 0:00:32]} Rxf6 {[%emt 0:00:24]} 95. g5 {[%emt 0:00:16]} Rf8 {[%emt 0:00:36]} 96. Rd6+ {[%emt 0:00:26]} Kf5 {[%emt 0:00:04]} 97. Kh4 {[%emt 0:00:42]} Rf7 {[%emt 0:00:30]} 98. Kxh5 {[%emt 0:00:31]} 1-0

[Event "ETCC Open 2023"]
[Site "Budva"]
[Date "2023.11.13"]
[Round "3.2"]
[White "Svane, Rasmus"]
[Black "Sarana, Alexey"]
[Result "1/2-1/2"]
[ECO "E11"]
[WhiteElo "2647"]
[BlackElo "2669"]
[Annotator "TA"]
[PlyCount "83"]
[EventDate "2023.11.10"]
[EventType "team-tourn"]
[EventCountry "MNE"]
[SourceTitle "playchess.com"]
[Source "ChessBase"]
[SourceQuality "1"]
[WhiteTeam "Germany"]
[BlackTeam "Serbia"]
[WhiteTeamCountry "GER"]
[BlackTeamCountry "SRB"]
[TimeControl "40/5400+30:1800+30"]

{[%evp 15,83,10,14,6,15,8,25,12,25,0,0,7,14,2,6,0,2,0,0,0,0,-10,15,8,10,11,8,14,19,15,14,0,26,1,47,10,36,30,39,32,32,23,55,49,52,50,51,44,44,43,40,48,62,52,44,0,37,0,42,36,45,0,0,0,0,0,0,0,0,-11]} 1. d4 {[%emt 0:00:09]} Nf6 {[%emt 0:00:08]} 2. c4 {[%emt 0:00:07]} e6 {[%emt 0:00:04]} 3. Nf3 {[%emt 0:00:19]} d5 {[%emt 0:00:05]} 4. g3 {[%emt 0:00:06]} Bb4+ {[%emt 0:00:11]} 5. Bd2 {[%emt 0:00:06]} Be7 {[%emt 0:00:04]} 6. Bg2 {[%emt 0:00:11]} O-O {[%emt 0:00:15]} 7. O-O {[%emt 0:00:30]} Nbd7 {[%emt 0:00:09]} 8. Qc2 {[%emt 0:00:12]} c6 {[%emt 0:00:13]} 9. Rc1 {[%emt 0:00:16] E11: Bogo-Indian.} a5 {[%emt 0:13:10]} 10. e3 $1 {[%emt 0:00:29][%mdl 4] is more profitable than 10.Bf4 at the moment.} Bd6 {[%emt 0:01:29]} 11. Be1 {[%emt 0:02:20] [#] White has an edge.} Qe7 $146 {[%emt 0:03:31]} ({Predecessor:} 11... e5 12. cxd5 Nxd5 13. Nc3 Nxc3 14. Bxc3 Qe7 15. e4 Re8 16. Re1 Bb4 17. Rad1 Bxc3 18. Qxc3 exd4 19. Nxd4 {½-½ Esipenko,A (2680)-Brkic,A (2596) EU-ch 23rd Vrnjacka Banja 2023 (7)}) 12. Nc3 {[%emt 0:30:42]} dxc4 {[%emt 0:03:45]} 13. Nd2 {[%emt 0:02:50]} Nb6 {[%emt 0:01:17]} 14. Nce4 {[%emt 0:05:23]} Nxe4 {[%emt 0:01:55]} 15. Bxe4 {[%emt 0:04:07]} f5 {[%emt 0:03:01]} 16. Bg2 {[%emt 0:00:35]} (16. Nxc4 $2 {perishes.} Nxc4 17. Bg2 Nb6 $19) 16... e5 {[%emt 0:00:20]} 17. dxe5 {[%emt 0:05:48]} Bxe5 {[%emt 0:01:43]} 18. Bf1 {[%emt 0:04:01]} Be6 {[%emt 0:10:34]} 19. Nxc4 {[%emt 0:00:59]} Nxc4 {[%emt 0:00:36]} 20. Bxc4 {[%emt 0:00:06]} Bxc4 {[%emt 0:00:15]} 21. Qxc4+ {[%emt 0:00:04]} Qf7 {[%emt 0:00:06]} 22. Rab1 {[%emt 0:07:53]} a4 {[%emt 0:07:27]} 23. b4 {[%emt 0:12:10]} a3 {[%emt 0:12:42]} 24. Qxf7+ {[%emt 0:00:36]} Rxf7 {[%emt 0:00:06]} (24... Kxf7 $11 {is superior.} 25. b5 Rfc8) 25. Bc3 {[%emt 0:01:08]} Bd6 {[%emt 0:05:14]} 26. Bd4 {[%emt 0:03:50]} Rc7 {[%emt 0:03:28]} 27. Bb6 {[%emt 0:03:48]} Rcc8 {[%emt 0:05:04]} 28. Rd1 {[%emt 0:01:10]} Bc7 {[%emt 0:00:54]} 29. Bd4 {[%emt 0:05:56]} g6 {[%emt 0:05:34]} 30. b5 {[%emt 0:01:50]} Bd6 {[%emt 0:01:03]} 31. bxc6 {[%emt 0:01:56]} bxc6 {[%emt 0:00:02]} 32. Bf6 {[%emt 0:02:18]} Bf8 {[%emt 0:00:39]} 33. Rb7 {[%emt 0:00:56]} Rab8 {[%emt 0:00:02]} 34. Ra7 {[%emt 0:00:19] White is much more active.} Ra8 {[%emt 0:00:02]} 35. Rb7 {[%emt 0:00:12]} Rab8 {[%emt 0:00:02]} 36. Ra7 {[%emt 0:01:22]} Ra8 $1 {[%emt 0:00:02]} 37. Rad7 {[%emt 0:01:12]} Ra5 {[%emt 0:04:33][%cal Oa5d5]} 38. h3 {[%emt 0:02:23]} Rd5 $1 {[%emt 0:00:20] The position is equal.} 39. R1xd5 {[%emt 0:00:23]} cxd5 {[%emt 0:00:01]} 40. Rxd5 {[%emt 0:00:56]} Rc2 {[%emt 0:00:07] Against Rd2} 41. Rd7 {[%emt 0:02:54]} Rxa2 {[%emt 0:02:33]} 42. Bd4 {[%emt 0:05:00] Weighted Error Value: White=0.10 (very precise) /Black=0.07 (flawless)} 1/2-1/2

[Event "ETCC Open 2023"]
[Site "Budva"]
[Date "2023.11.13"]
[Round "3.3"]
[White "Indjic, Aleksandar"]
[Black "Bluebaum, Matthias"]
[Result "0-1"]
[ECO "B12"]
[WhiteElo "2601"]
[BlackElo "2670"]
[Annotator "TA"]
[PlyCount "108"]
[EventDate "2023.11.10"]
[EventType "team-tourn"]
[EventCountry "MNE"]
[SourceTitle "playchess.com"]
[Source "ChessBase"]
[SourceQuality "1"]
[WhiteTeam "Serbia"]
[BlackTeam "Germany"]
[WhiteTeamCountry "SRB"]
[BlackTeamCountry "GER"]
[TimeControl "40/5400+30:1800+30"]

{[%evp 9,108,0,0,-4,21,29,43,20,16,22,24,17,21,23,54,48,60,55,82,60,77,78,47,29,29,29,17,12,24,32,34,0,0,-14,-18,-13,0,0,0,-34,-24,-68,-44,-56,-79,-267,-158,-267,-253,-257,-252,-252,-8,-8,-12,-12,0,-150,-153,-271,-20,-250,-271,-607,-665,-650,-632,-646,0,-525,-635,-594,-592,-568,-560,-550,-510,-477,-479,-5785,-2595,-29962,-29954,-5377,-273,-29966,-29968,-29968,-29969,-29969,-29968,-29968,-29969,-29969,-29970,-29969,-29971,-29972,-29973,-29972,-29973]} 1. e4 {[%emt 0:00:52]} c6 {[%emt 0:00:50]} 2. d4 {[%emt 0:00:29]} d5 {[%emt 0:00:04][%cal Bd7d5,Bd5d4][%mdl 32]} 3. e5 {[%emt 0:00:31]} c5 {[%emt 0:01:10]} 4. Nf3 {[%emt 0:00:46]} cxd4 {[%emt 0:00:05]} 5. Qxd4 {[%emt 0:00:25]} Nc6 {[%emt 0:01:01]} 6. Qf4 {[%emt 0:00:16] B12: Caro-Kann: Advance Variation.} g6 {[%emt 0:02:34] ...Bh6 would be deadly.} 7. Nc3 {[%emt 0:04:56][%cal Bb1c3,Bc3b5,Bb5d4][%mdl 32]} ({Much weaker is} 7. Ng5 f6 8. exf6 Nxf6 $17) 7... d4 {[%emt 0:01:04] [#] Dodges Be3. And now ...Bh6 would win.} 8. Bc4 $1 {[%emt 0:08:17] White is slightly better.} Bf5 {[%emt 0:01:07] aiming for ...Bh6.} 9. Nb5 {[%emt 0:25:28]} Bh6 {[%emt 0:00:51]} 10. Qh4 {[%emt 0:00:08]} Bxc1 {[%emt 0:01:11]} 11. Rxc1 {[%emt 0:00:07] [#]} a6 $146 {[%emt 0:03:30]} ({Predecessor:} 11... Rc8 12. O-O a6 13. Na3 b5 14. Bb3 e6 15. Qg3 Nge7 16. Rfd1 Be4 17. Nxd4 Nxd4 {0-1 Pino Munoz,F (1963)-Fister,B (2303) Champion's League 10/C6 email 2010 [2]}) 12. Nbxd4 {[%emt 0:01:29]} Nxe5 {[%emt 0:12:12][%mdl 64] [#] Decoy} 13. O-O $1 {[%emt 0:08:33]} Nxc4 {[%emt 0:22:47]} (13... e6 14. Qf4) 14. Nxf5 {[%emt 0:00:08]} Qc7 {[%emt 0:01:46]} 15. Qd4 {[%emt 0:07:01]} (15. b3 {simplifies} Nb6 16. Ne3 h5 17. Rfe1) 15... f6 {[%emt 0:00:05]} 16. Ne3 {[%emt 0:05:48]} Nxe3 {[%emt 0:01:50]} 17. Qxe3 {[%emt 0:00:05]} e5 {[%emt 0:03:29]} 18. Rcd1 {[%emt 0:01:42]} Ne7 $1 {[%emt 0:01:45]} 19. Qb3 {[%emt 0:00:08]} Nc6 {[%emt 0:01:46]} 20. Rd3 {[%emt 0:04:09]} Ke7 {[%emt 0:05:26]} 21. Qa3+ {[%emt 0:02:33]} Kf7 {[%emt 0:00:40]} 22. Qb3+ {[%emt 0:00:07]} Ke7 {[%emt 0:00:35]} (22... Kg7 {simplifies} 23. Rfd1 Rhd8 24. c3 Qf7) 23. Nd2 {[%emt 0:12:44] Strongly threatening Ne4.} Rad8 {[%emt 0:03:07]} 24. Rxd8 {[%emt 0:01:30]} Rxd8 {[%emt 0:01:24]} 25. Ne4 {[%emt 0:00:06]} Nd4 {[%emt 0:04:21][%csl LRb3,LRc2][%cal Bc6d4,Bd4e2,Be2c3,Bc3d1,Bd1f2][%mdl 32]} 26. Qh3 {[%emt 0:03:11]} h5 {[%emt 0:00:57]} 27. c3 $2 {[%emt 0:00:20]} (27. Qa3+ $17 Kf7 28. c3) 27... Ne2+ $19 {[%emt 0:04:12]} 28. Kh1 {[%emt 0:00:06]} Qc4 $1 {[%emt 0:03:03][%csl LRa2,LRe4] White must now prevent ...Nf4.} 29. Qe3 {[%emt 0:04:44] [#]} Nxc3 $1 {[%emt 0:03:57][%cal Rc4f1][%mdl 576] Discovered Attack} 30. Ng3 {[%emt 0:01:15] White is weak on the light squares} (30. Qc5+ Qxc5) 30... Rd1 $2 $40 {[%emt 0:03:56][%mdl 128] Black is up to no good.} (30... Nxa2 $2 {loses.} 31. f4 Rd3 32. Qe1 $17) (30... Nd5 $19 31. Qc1 Qxc1 32. Rxc1 Nf4) 31. Rxd1 $11 {[%emt 0:02:01]} Nxd1 {[%emt 0:00:02][%mdl 4096] Endgame KQN-KQN} 32. Qf3 {[%emt 0:00:07][%csl LRb7,LRd1]} Qc1 {[%emt 0:06:19][%cal Rd1f2]} (32... h4 {simplifies} 33. Qxd1 hxg3 34. hxg3 Qxa2 35. Qc2 Qf7) 33. Qxb7+ {[%emt 0:00:06]} (33. Nf1 $1 $11) 33... Kf8 $17 {[%emt 0:00:04][%cal Rd1f2]} 34. h3 {[%emt 0:00:14]} (34. Qxa6 $2 Nxf2#) (34. Qb4+ $17 {is a better defense.} Kf7 35. Qb7+ Kg8 36. Qb8+ (36. Qxa6 $2 Nxf2#) 36... Kg7 37. Qa7+ Kh6 38. Nf1) 34... Nxf2+ $19 {[%emt 0:02:42][%mdl 64] Discovered Attack (Double check)} 35. Kh2 {[%emt 0:00:01] Qa8+ is the strong threat.} Qf4 {[%emt 0:08:08] Hoping for ...h4. Active counter play!} 36. Qh7 $2 {[%emt 0:01:07]} (36. Qc8+ Kg7 37. Kg1) 36... h4 {[%emt 0:00:00][%mdl 64] Pin} 37. Qh8+ {[%emt 0:00:16]} Kf7 {[%emt 0:00:00]} 38. Qh7+ {[%emt 0:00:05]} Kf8 {[%emt 0:00:00]} 39. Qh8+ {[%emt 0:00:08] [#]} Ke7 $1 {[%emt 0:00:00]} 40. Qg7+ {[%emt 0:00:05]} Kd6 {[%emt 0:00:20]} 41. Qf8+ {[%emt 0:30:08]} Kd5 {[%emt 0:30:15]} 42. Qd8+ {[%emt 0:00:00]} Kc4 {[%emt 0:00:00]} 43. Qc7+ {[%emt 0:00:00]} Kd4 {[%emt 0:00:00]} ({Avoid the trap} 43... Kb5 $2 44. Qb8+ Kc5 45. Qf8+ Kc4 46. Qc8+ Kd4 47. Qc3+ Kd5 48. Qa5+ Kc6 49. Qxa6+ Kd7 50. Qb7+ Kd6 51. Qa6+ Ke7 52. Qa3+ Kd7 53. Qa7+ Ke8 54. Qb8+ Kf7 55. Qc7+ Kf8 56. Qb8+ Kg7 57. Qb7+ Kh6 58. Qf3 hxg3+ 59. Qxg3 $19) 44. Qb6+ {[%emt 0:06:30] [#]} (44. Qc3+ $142 Kd5 45. Qa5+ Ke6 46. Qxa6+ Kf7 47. Qa7+ Kg8 48. Qa8+ Kg7 49. Qb7+ Kh6 50. Qf3 hxg3+ 51. Qxg3) 44... Kd3 $1 {[%emt 0:00:00]} 45. Qxa6+ {[%emt 0:00:06]} Kc2 {[%emt 0:00:00]} 46. Qe2+ {[%emt 0:00:05]} Kb1 {[%emt 0:00:00]} 47. Qe1+ $2 {[%emt 0:00:26]} (47. Qf1+ $19 Kxa2 48. Qa6+ Kxb2 49. Qe2+ Ka3 50. Qa6+ Kb3 51. Qb5+ Kc2 52. Qe2+ Kc1 53. Qf1+ Kd2 54. Qe2+ Kc3 55. Qe1+ Kc4 56. Qe2+ Kd5 57. Qa2+ Kd6 58. Qa3+ Kd7 59. Qa7+ Ke6 60. Qb6+ Ke7 61. Qb7+ Kf8 62. Qf3 hxg3+ 63. Qxg3 Qxg3+ 64. Kxg3 Nxh3 65. Kxh3 Ke7 66. Kh4 Ke6 67. Kg4 f5+ 68. Kg3 g5 69. Kf3 e4+ 70. Kf2 Kd5 71. Ke3 f4+ 72. Ke2 Kd4 73. Ke1 e3 74. Kf1 Kd3 75. g3 f3 76. g4 Kd2 77. Kg1 Ke2 78. Kh1 Kf2 79. Kh2 e2 80. Kh3 e1=Q 81. Kh2 Qg1+ 82. Kh3 Qh1#) 47... Kxa2 {[%emt 0:00:00] Black mates.} 48. Qa5+ {[%emt 0:00:05]} Kb1 {[%emt 0:00:00]} 49. Qe1+ {[%emt 0:00:06]} Kxb2 {[%emt 0:00:00]} 50. Qe2+ {[%emt 0:00:07]} Kc3 {[%emt 0:00:00]} 51. Qe1+ {[%emt 0:00:06]} Kc4 {[%emt 0:00:00]} 52. Qe2+ {[%emt 0:00:08]} Kd5 {[%emt 0:00:00]} 53. Qb5+ {[%emt 0:00:07]} Kd6 {[%emt 0:00:00]} 54. Qb6+ {[%emt 0:00:18]} Ke7 {[%emt 0:00:00] Weighted Error Value: White=0.58/Black=0.17 (very precise)} 0-1